[Event "CCT Final-RR 2024"]
[Site "Oslo"]
[Date "2024.12.18"]
[Round "5"]
[White "So, Wesley"]
[Black "Aronian, Levon"]
[Result "0-1"]
[ECO "B51"]
[WhiteElo "2747"]
[BlackElo "2747"]
[Annotator "RC"]
[PlyCount "178"]
[EventDate "2024.12.11"]
[EventType "tourn"]
[EventCountry "NOR"]
[SourceTitle "playchess.com"]
[Source "ChessBase"]
[SourceQuality "1"]
[TimeControl "600+2"]

1. e4 {[%emt 0:00:02]} c5 {[%emt 0:00:01]} 2. Nf3 {[%emt 0:00:02]} d6 {[%emt 0:00:01]} 3. Bb5+ {[%emt 0:00:02]} Nd7 {[%emt 0:00:01]} 4. a4 {[%emt 0:00:03]} Ngf6 {[%emt 0:00:04]} 5. Nc3 {[%emt 0:00:02]} a6 {[%emt 0:00:01]} 6. Bc4 {[%emt 0:00:04]} Qa5 {[%emt 0:00:04]} 7. Ba2 {[%emt 0:00:05]} e6 {[%emt 0:00:04]} 8. Qe2 {[%emt 0:00:03]} Be7 {[%emt 0:01:13]} 9. O-O {[%emt 0:00:03]} O-O {[%emt 0:00:22]} 10. d4 {[%emt 0:00:02]} cxd4 {[%emt 0:00:02]} 11. Nxd4 {[%emt 0:00:01]} Nb8 {[%emt 0:00:10]} 12. Be3 {[%emt 0:00:18]} Nc6 {[%emt 0:00:08]} 13. Kh1 {[%emt 0:00:35]} Bd7 {[%emt 0:00:38]} 14. f4 {[%emt 0:00:02]} Qb4 {[%emt 0:00:16]} 15. Qd2 {[%emt 0:01:59]} Rac8 {[%emt 0:00:06]} 16. Rab1 {[%emt 0:01:50]} Nxd4 {[%emt 0:00:27]} 17. Qxd4 {[%emt 0:00:19]} Qxd4 {[%emt 0:00:07]} 18. Bxd4 {[%emt 0:00:01]} b5 {[%emt 0:00:35]} 19. axb5 {[%emt 0:00:05]} axb5 {[%emt 0:00:01]} 20. b4 {[%emt 0:00:23]} Rc7 {[%emt 0:00:07]} 21. h3 {[%emt 0:01:53]} Rfc8 {[%emt 0:00:24]} 22. Rf3 {[%emt 0:00:01]} Bc6 {[%emt 0:00:26]} 23. Re1 {[%emt 0:00:10]} g6 {[%emt 0:00:36]} 24. Bb3 {[%emt 0:00:01]} Nd7 {[%emt 0:00:29]} 25. Kh2 {[%emt 0:00:09]} Kf8 {[%emt 0:00:25]} 26. Rd3 {[%emt 0:00:04]} Rb7 {[%emt 0:01:35]} 27. f5 {[%emt 0:00:08]} exf5 {[%emt 0:01:22]} 28. exf5 {[%emt 0:00:02]} Ne5 {[%emt 0:00:01]} 29. Rdd1 {[%emt 0:00:09]} gxf5 {[%emt 0:00:04]} 30. Rf1 {[%emt 0:00:11]} Bd7 {[%emt 0:00:02]} 31. Nd5 {[%emt 0:00:22]} Bg5 {[%emt 0:00:07]} 32. Nb6 {[%emt 0:00:07]} Rxb6 {[%emt 0:00:23]} 33. Bxb6 {[%emt 0:00:00]} Ke7 {[%emt 0:00:01]} 34. Bd4 {[%emt 0:00:26]} Be6 {[%emt 0:00:02]} 35. Ra1 {[%emt 0:00:02]} Nc6 {[%emt 0:00:02]} 36. Bc3 {[%emt 0:00:14]} d5 {[%emt 0:00:11]} 37. Ra6 {[%emt 0:00:11]} Be3 {[%emt 0:00:01]} 38. Be1 {[%emt 0:00:10]} d4 {[%emt 0:00:13]} 39. Bh4+ {[%emt 0:00:10]} Kd7 {[%emt 0:00:01]} 40. Rb6 {[%emt 0:00:06]} Nxb4 {[%emt 0:00:15]} 41. Rxb5 {[%emt 0:00:07]} Nxc2 {[%emt 0:00:01]} 42. Ba4 {[%emt 0:00:05]} Kd6 {[%emt 0:00:06]} 43. Bg3+ {[%emt 0:00:02]} Ke7 {[%emt 0:00:00]} 44. Rb7+ {[%emt 0:00:09]} Kf6 {[%emt 0:00:01]} 45. Bb5 {[%emt 0:00:15]} Bg5 {[%emt 0:00:11]} 46. Bd3 {[%emt 0:00:05]} Ne3 {[%emt 0:00:01]} 47. Ra1 {[%emt 0:00:08]} Rc3 {[%emt 0:00:02]} 48. Be2 {[%emt 0:00:02]} f4 {[%emt 0:00:03]} 49. Be1 {[%emt 0:00:01]} Rc2 {[%emt 0:00:02]} 50. Bf3 {[%emt 0:00:01]} Nxg2 {[%emt 0:00:00]} 51. Kg1 {[%emt 0:00:07]} Nxe1 {[%emt 0:00:03]} 52. Rxe1 {[%emt 0:00:01]} d3 {[%emt 0:00:01]} 53. Rd1 {[%emt 0:00:01]} d2 {[%emt 0:00:03]} 54. Rb4 {[%emt 0:00:02]} Rc3 {[%emt 0:00:04]} 55. Kg2 {[%emt 0:00:03]} Rd3 {[%emt 0:00:01]} 56. Rb2 {[%emt 0:00:03]} Bd5 {[%emt 0:00:03]} 57. Bxd5 {[%emt 0:00:01]} Rxd5 {[%emt 0:00:00]} 58. Kf2 {[%emt 0:00:03]} f3 {[%emt 0:00:03]} 59. Kxf3 {[%emt 0:00:01]} Rd3+ {[%emt 0:00:01]} 60. Kg2 {[%emt 0:00:05]} Rd4 {[%emt 0:00:01]} 61. Kf3 {[%emt 0:00:01]} Kg6 {[%emt 0:00:01]} 62. Ke2 {[%emt 0:00:02]} f6 {[%emt 0:00:03]} 63. Rf1 {[%emt 0:00:03]} Rh4 {[%emt 0:00:02]} 64. Rb3 {[%emt 0:00:01]} Rc4 {[%emt 0:00:01]} 65. Rg3 {[%emt 0:00:02]} Kh5 {[%emt 0:00:02]} 66. Rgf3 {[%emt 0:00:01]} Rc1 {[%emt 0:00:02]} 67. Rd1 {[%emt 0:00:02]} Rc5 {[%emt 0:00:01]} 68. Rxd2 {[%emt 0:00:02]} Re5+ {[%emt 0:00:02]} 69. Kd1 {[%emt 0:00:01]} Bxd2 {[%emt 0:00:01]} 70. Kxd2 {[%emt 0:00:00]} f5 {[%emt 0:00:00]} 71. Kd3 {[%emt 0:00:06]} Kg5 {[%emt 0:00:01]} 72. Kd4 {[%emt 0:00:02]} Re4+ {[%emt 0:00:02]} 73. Kd3 {[%emt 0:00:00]} Re1 {[%emt 0:00:06]} 74. Rg3+ {[%emt 0:00:03]} Kf4 {[%emt 0:00:02]} 75. Rg7 {[%emt 0:00:02]} Re3+ {[%emt 0:00:01]} 76. Kd2 {[%emt 0:00:02]} h5 {[%emt 0:00:02]} 77. h4 {[%emt 0:00:03]} Rg3 {[%emt 0:00:04]} 78. Rf7 {[%emt 0:00:02]} Rh3 {[%emt 0:00:03]} 79. Ke2 {[%emt 0:00:01]} Rxh4 {[%emt 0:00:00]} 80. Kf2 {[%emt 0:00:01]} Rg4 {[%emt 0:00:01]} 81. Ra7 {[%emt 0:00:02]} h4 {[%emt 0:00:03]} 82. Ra4+ {[%emt 0:00:01]} Kg5 {[%emt 0:00:01]} 83. Ra8 {[%emt 0:00:00]} h3 {[%emt 0:00:01]} 84. Rh8 {[%emt 0:00:02]} Rh4 {[%emt 0:00:02]} 85. Rg8+ {[%emt 0:00:02]} Kf4 {[%emt 0:00:00]} 86. Rg1 {[%emt 0:00:07]} h2 {[%emt 0:00:02]} 87. Rh1 {[%emt 0:00:00]} Rh8 {[%emt 0:00:02]} 88. Kg2 {[%emt 0:00:02]} Kg4 {[%emt 0:00:02]} 89. Kf2 {[%emt 0:00:05]} Kh3 {[%emt 0:00:01]} 0-1

[Event "CCT Final-RR 2024"]
[Site "Oslo"]
[Date "2024.12.18"]
[Round "5"]
[White "Keymer, Vincent"]
[Black "Vachier-Lagrave, Maxime"]
[Result "1/2-1/2"]
[ECO "A30"]
[WhiteElo "2733"]
[BlackElo "2731"]
[Annotator "TA"]
[PlyCount "116"]
[EventDate "2024.12.11"]
[EventType "tourn"]
[EventCountry "NOR"]
[SourceTitle "playchess.com"]
[Source "ChessBase"]
[SourceQuality "1"]
[TimeControl "600+2"]

{[%evp 44,116,0,0,0,0,0,0,0,0,0,-1,0,0,0,0,58,10,11,15,15,10,51,42,32,20,45,12,55,20,27,0,17,0,41,6,8,0,0,0,0,0,65,0,0,0,101,9,9,0,0,-6,-4,-7,-5,-3,-3,-8,-5,-186,-5,-15,-9,-363,-340,-344,-313,-289,0,0,0,-250,0,0,0]} 1. c4 {[%emt 0:00:02]} Nf6 {[%emt 0:00:04]} 2. Nf3 {[%emt 0:00:01]} c5 {[%emt 0:00:01]} 3. b3 {[%emt 0:00:01]} g6 {[%emt 0:00:04]} 4. Bb2 {[%emt 0:00:02]} Bg7 {[%emt 0:00:02]} 5. g3 {[%emt 0:00:02]} b6 {[%emt 0:00:01]} 6. Bg2 {[%emt 0:00:03]} Bb7 {[%emt 0:00:01]} 7. O-O {[%emt 0:00:07]} O-O {[%emt 0:00:02]} 8. d4 {[%emt 0:00:06]} cxd4 {[%emt 0:00:01]} 9. Qxd4 {[%emt 0:00:07]} d6 {[%emt 0:00:09]} 10. Rd1 {[%emt 0:00:16]} Nbd7 {[%emt 0:00:02]} 11. Nc3 {[%emt 0:00:29]} Ne4 {[%emt 0:00:34] A30: Symmetrical English: Double Fianchetto and Hedgehog.} 12. Qe3 {[%emt 0:00:01]} Nxc3 {[%emt 0:00:54]} 13. Bxc3 {[%emt 0:00:02]} Bxc3 {[%emt 0:00:01]} 14. Qxc3 {[%emt 0:00:01]} Rc8 {[%emt 0:00:05] 14...Qc7 is a critical line.} 15. Qe3 {[%emt 0:00:01]} Rc5 {[%emt 0:00:12]} 16. Rd4 {[%emt 0:00:17]} Nf6 {[%emt 0:00:43]} 17. Rad1 {[%emt 0:00:55]} b5 $146 {[%emt 0:00:28]} ({Predecessor:} 17... Qd7 18. Rh4 Rh5 19. Rxh5 Nxh5 20. Nd4 Bxg2 21. Kxg2 Nf6 22. Qf3 Rc8 23. a4 a6 {1-0 Adhiban,B (2654)-Livaic,L (2495) PRO League Stage rapid 2020 (1)}) 18. cxb5 {[%emt 0:00:23]} Rxb5 {[%emt 0:00:01]} 19. Ra4 {[%emt 0:00:03]} a5 {[%emt 0:00:27]} 20. Nd4 {[%emt 0:00:21]} Re5 {[%emt 0:00:02]} 21. Qd3 {[%emt 0:00:32]} Bxg2 {[%emt 0:00:13]} 22. Kxg2 {[%emt 0:00:02]} Qa8+ {[%emt 0:00:28]} 23. Qf3 {[%emt 0:00:18]} Qxf3+ {[%emt 0:00:22]} 24. Nxf3 {[%emt 0:01:32]} Rc5 {[%emt 0:00:17]} 25. Ne1 {[%emt 0:00:26]} Rfc8 {[%emt 0:00:51]} 26. Rdd4 {[%emt 0:00:21]} d5 {[%emt 0:00:27]} 27. f3 {[%emt 0:00:36]} e5 {[%emt 0:00:22]} 28. Rd2 {[%emt 0:00:02]} e4 {[%emt 0:00:01]} 29. Kf2 {[%emt 0:00:03]} Re8 {[%emt 0:00:45]} (29... Rc1 $11 30. Ng2 Rh1) 30. Rc2 {[%emt 0:00:43]} (30. Ng2 $14) 30... Rec8 $11 {[%emt 0:00:01]} 31. Rxc5 {[%emt 0:00:11]} Rxc5 {[%emt 0:00:01]} 32. Ke3 {[%emt 0:00:02]} g5 {[%emt 0:00:29]} 33. Kd2 {[%emt 0:00:30]} Kf8 {[%emt 0:00:19]} 34. Ng2 {[%emt 0:00:27]} Ke7 {[%emt 0:00:09]} 35. Ne3 {[%emt 0:00:01]} h5 {[%emt 0:00:40]} 36. Nf5+ {[%emt 0:01:05]} Kd7 {[%emt 0:00:01]} 37. Nd4 {[%emt 0:00:21]} Ne8 {[%emt 0:00:03]} 38. Nf5 {[%emt 0:00:21]} Nf6 {[%emt 0:00:27]} 39. h3 {[%emt 0:00:01]} g4 {[%emt 0:00:22]} 40. fxg4 {[%emt 0:00:15]} hxg4 {[%emt 0:00:01]} 41. h4 {[%emt 0:00:01]} Nh5 {[%emt 0:00:01]} 42. e3 {[%emt 0:00:08]} Kc7 {[%emt 0:00:31]} (42... Ke6 $11 43. Nd4+ Kf6) 43. Rd4 {[%emt 0:00:06]} (43. a3 $1 $14) 43... Kd7 $11 {[%emt 0:00:01]} 44. Ra4 {[%emt 0:00:02]} ({White should play} 44. b4 $11 axb4 45. Rxb4) 44... Kc7 $16 {[%emt 0:00:01] [#]} 45. b4 {[%emt 0:00:03]} (45. a3 $1 $16) 45... axb4 $11 {[%emt 0:00:05]} 46. Ra7+ {[%emt 0:00:01]} Kd8 {[%emt 0:00:20]} 47. Rxf7 {[%emt 0:00:02]} Ra5 {[%emt 0:00:01]} 48. Rh7 {[%emt 0:00:03]} Rxa2+ {[%emt 0:00:01]} 49. Kc1 {[%emt 0:00:01]} Nf6 {[%emt 0:00:01]} 50. Rh6 {[%emt 0:00:00]} Nd7 {[%emt 0:00:03]} 51. h5 $2 {[%emt 0:00:01] [#]} (51. Rd6 $11 {and White stays safe.}) 51... Rh2 $2 {[%emt 0:00:10]} ({Black should try} 51... Ne5 $1 $19 {...b3 is the strong threat.} 52. Rh7 b3) 52. Rh8+ $11 {[%emt 0:00:04]} Kc7 {[%emt 0:00:01]} 53. h6 $2 {[%emt 0:00:01][%mdl 8192]} (53. Rh7 $1 $11) 53... Nc5 $19 {[%emt 0:00:05]} 54. Nd4 {[%emt 0:00:02]} b3 {[%emt 0:00:05]} 55. Kb1 {[%emt 0:00:00]} Rh1+ {[%emt 0:00:01]} (55... Nd3 56. Nxb3 Ne5 (56... Rb2+ 57. Ka1 $16) 57. Nd4 $11) 56. Kb2 {[%emt 0:00:02]} Rh2+ {[%emt 0:00:01]} 57. Kb1 $1 {[%emt 0:00:04]} Rh1+ $2 {[%emt 0:00:01]} ({Weaker is} 57... Nd3 58. Nxb3 Ne5 (58... Rb2+ 59. Ka1 $14) 59. Nd4 $11) (57... b2 $19 58. Nb5+ Kc6) 58. Kb2 $11 {[%emt 0:00:02]} Rh2+ {[%emt 0:00:01]} 1/2-1/2

[Event "CCT Final-RR 2024"]
[Site "Oslo"]
[Date "2024.12.18"]
[Round "5"]
[White "Vachier-Lagrave, Maxime"]
[Black "Keymer, Vincent"]
[Result "1-0"]
[ECO "C49"]
[WhiteElo "2731"]
[BlackElo "2733"]
[Annotator "TA"]
[PlyCount "121"]
[EventDate "2024.12.11"]
[EventType "tourn"]
[EventCountry "NOR"]
[SourceTitle "playchess.com"]
[Source "ChessBase"]
[SourceQuality "1"]
[TimeControl "600+2"]

{[%evp 19,121,9,10,0,17,0,0,6,9,9,13,13,19,15,15,15,22,10,13,12,18,11,37,0,28,27,32,43,300,37,30,9,14,5,80,84,99,102,100,0,0,0,0,0,82,76,64,65,64,69,62,65,96,59,63,70,83,55,55,55,55,55,55,62,64,64,66,69,85,64,173,175,182,182,182,182,182,182,182,182,182,182,401,214,1031,805,2519,2296,1718,1305,29970,29969,29979,29979,29979,29980,29979,29980,29980,29981,29981,29982,29982,29983]} 1. e4 {[%emt 0:00:01]} e5 {[%emt 0:00:01]} 2. Nf3 {[%emt 0:00:01]} Nc6 {[%emt 0:00:01]} 3. Nc3 {[%emt 0:00:01]} Nf6 {[%emt 0:00:05]} 4. Bb5 {[%emt 0:00:01]} Bb4 {[%emt 0:00:04]} 5. O-O {[%emt 0:00:05]} O-O {[%emt 0:00:05]} 6. d3 {[%emt 0:00:01]} Bxc3 {[%emt 0:00:04]} 7. bxc3 {[%emt 0:00:01]} d6 {[%emt 0:00:01]} 8. Bg5 {[%emt 0:00:05]} h6 {[%emt 0:00:26]} 9. Bh4 {[%emt 0:00:01]} a6 {[%emt 0:00:36]} 10. Bxc6 {[%emt 0:01:08]} bxc6 {[%emt 0:00:01]} 11. Rb1 {[%emt 0:00:01]} c5 {[%emt 0:00:39]} 12. c4 {[%emt 0:00:07]} Bg4 {[%emt 0:00:21]} 13. h3 {[%emt 0:00:02] The position is equal.} Bxf3 {[%emt 0:00:19]} 14. Qxf3 {[%emt 0:00:01]} g5 {[%emt 0:00:01]} 15. Bg3 {[%emt 0:00:02]} Kg7 {[%emt 0:00:29]} 16. Rb3 {[%emt 0:00:14]} Qd7 {[%emt 0:00:42]} 17. Rfb1 {[%emt 0:00:02]} Ng8 {[%emt 0:00:01]} 18. c3 {[%emt 0:01:09][%cal Od3d4]} Ne7 {[%emt 0:00:04] [#]} 19. d4 $1 {[%emt 0:00:16]} cxd4 {[%emt 0:01:00]} (19... f6 {simplifies} 20. Qd1 Rfd8 21. Ra3 Qe6) 20. cxd4 {[%emt 0:00:01]} exd4 {[%emt 0:00:36]} 21. e5 {[%emt 0:00:07]} dxe5 {[%emt 0:00:57]} 22. Bxe5+ {[%emt 0:00:01]} f6 $1 {[%emt 0:00:01]} 23. Bxf6+ {[%emt 0:02:24]} Kg6 $2 {[%emt 0:00:01][%mdl 8192] [#]} (23... Kg8 $1 $14 24. Qe4 Nf5) 24. Qe4+ $2 {[%emt 0:00:01]} (24. Qd3+ $1 $18 Kxf6 25. Qh7) 24... Qf5 $1 $14 {[%emt 0:01:24]} (24... Kxf6 25. Qh7 g4 (25... Qf5 $2 26. Rf3 $18) 26. hxg4 Qxg4 27. Rg3 $18) 25. Qxe7 {[%emt 0:00:16]} Rxf6 {[%emt 0:00:05]} 26. Rf1 {[%emt 0:00:28] Really sharp!} d3 {[%emt 0:00:30]} (26... Rf7 $11 {remains equal.} 27. Qa3 Qe6) 27. Qxc7 $16 {[%emt 0:00:18]} Re8 {[%emt 0:00:53]} 28. Rb7 {[%emt 0:00:30] g4 would kill now.} Rf7 {[%emt 0:00:22]} 29. Qc6+ {[%emt 0:00:01]} (29. Rb6+ $16 Re6 30. Qd8 Rxb6 31. Qxb6+ Qf6 32. c5) 29... Re6 $11 {[%emt 0:00:04]} 30. Qc8 {[%emt 0:00:28]} Rxb7 {[%emt 0:00:06]} 31. Qxb7 {[%emt 0:00:01][%mdl 4096] Endgame. KQR-KQR} Rd6 {[%emt 0:00:19]} (31... d2 $11 32. Qc8 Rd6 33. Qe8+ Kf6) 32. Qb8 {[%emt 0:00:15]} Qe6 {[%emt 0:00:10][%cal Od3d2]} 33. c5 $36 {[%emt 0:00:05][%mdl 2048] White has the initiative.} Rd7 {[%emt 0:00:01]} 34. Rd1 {[%emt 0:00:23]} d2 {[%emt 0:00:02]} 35. Qb6 {[%emt 0:00:20]} Kf7 {[%emt 0:00:18] White must now prevent ...Qe1+.} 36. Qxe6+ {[%emt 0:00:02]} (36. c6 {keeps more tension.} Qe1+ 37. Kh2 Qe5+ 38. g3) 36... Kxe6 $16 {[%emt 0:00:01] KR-KR} 37. Kf1 {[%emt 0:00:04]} Rd5 {[%emt 0:00:03]} 38. Ke2 {[%emt 0:00:01]} (38. c6 {is interesting.} Rc5 39. Rxd2 Rc1+ 40. Ke2) 38... Rxc5 {[%emt 0:00:06]} 39. Rxd2 {[%emt 0:00:01]} (39. Kxd2 Ra5 $11) 39... Ra5 {[%emt 0:00:00]} 40. Kd3 {[%emt 0:00:07]} h5 {[%emt 0:00:03][%cal Bh6h5,Bh5g4][%mdl 32]} 41. Kc4 {[%emt 0:00:10]} g4 {[%emt 0:00:07]} 42. hxg4 {[%emt 0:00:10]} hxg4 {[%emt 0:00:01]} 43. Re2+ {[%emt 0:00:11]} Kf6 {[%emt 0:00:02] White leaves nothing to chance now.} 44. g3 {[%emt 0:00:12]} Rf5 {[%emt 0:00:11]} (44... Kg5 $14) 45. a4 $18 {[%emt 0:00:08]} Kf7 {[%emt 0:00:03]} 46. Re4 {[%emt 0:00:15]} Rxf2 {[%emt 0:00:01]} 47. Rxg4 {[%emt 0:00:00] White threatens Rf4+ and mate.} Rc2+ {[%emt 0:00:05]} 48. Kb4 {[%emt 0:00:04]} Rc6 {[%emt 0:00:01]} 49. Ka5 {[%emt 0:00:05]} Ke7 {[%emt 0:00:03]} 50. Rg7+ {[%emt 0:00:05]} Kf6 $2 {[%emt 0:00:03]} (50... Kf8 51. Rg4 Re6) 51. Rb7 {[%emt 0:00:03]} (51. Ra7 $142 Rc3 52. g4 (52. Rxa6+ Kf7 $16) (52. Kxa6 Rxg3 53. a5 Ke6 $11)) 51... Rc3 $2 {[%emt 0:00:02]} (51... Ke5 52. Re7+ Kf5) 52. g4 {[%emt 0:00:10]} ({Worse is} 52. Kxa6 Rxg3 53. Rb2 Ke6 $11) 52... Rg3 {[%emt 0:00:02]} 53. Rb4 {[%emt 0:00:02]} ({Inferior is} 53. Kxa6 Rxg4 54. a5 Ke6 $11) 53... Ke6 {[%emt 0:00:02]} 54. Kxa6 {[%emt 0:00:01] Threatens to win with a5.} Kf7 {[%emt 0:00:02]} 55. a5 {[%emt 0:00:01][%cal Ba4a5,Ba5a6,Ba6a7][%mdl 32] White mates.} Kg7 {[%emt 0:00:01]} 56. Kb7 {[%emt 0:00:01]} Re3 {[%emt 0:00:01]} 57. a6 {[%emt 0:00:02]} Re7+ {[%emt 0:00:01]} 58. Kb6 {[%emt 0:00:01]} Re6+ {[%emt 0:00:01]} 59. Ka5 {[%emt 0:00:01]} Re5+ {[%emt 0:00:03]} 60. Rb5 {[%emt 0:00:01]} Re1 {[%emt 0:00:02]} 61. a7 {[%emt 0:00:02] Weighted Error Value: White=0.22 (precise) /Black=0.33.  Loses game:     	---       	Black=1      Missed win:     	White=1     	---        Mistake:       	White=2     	Black=5      Inaccurate:     	White=3     	Black=4      OK:         	White=20    	Black=9      Best:        	White=2     	Black=6      Strong:       	---       	Black=2} 1-0

[Event "CCT Final-RR 2024"]
[Site "Oslo"]
[Date "2024.12.18"]
[Round "5"]
[White "Lazavik, Denis"]
[Black "Nepomniachtchi, Ian"]
[Result "1-0"]
[ECO "A06"]
[WhiteElo "2578"]
[BlackElo "2755"]
[Annotator "TA"]
[PlyCount "97"]
[EventDate "2024.12.11"]
[EventType "tourn"]
[EventCountry "NOR"]
[SourceTitle "playchess.com"]
[Source "ChessBase"]
[SourceQuality "1"]
[TimeControl "600+2"]

{[%evp 9,97,-17,-22,-27,-13,-3,-14,-17,0,-1,1,-35,20,12,20,9,41,1,33,17,39,36,81,58,39,41,62,41,43,0,0,-32,0,0,24,8,29,0,0,0,27,22,33,0,0,-54,-61,-64,-59,-88,-78,-90,-37,-37,-12,-10,-8,-8,-8,-8,101,100,97,100,142,75,71,85,86,68,383,369,762,729,29976,29977,29977,29978,29978,29979,29979,29980,29980,185,29981,29982,29982,29983,29983,29984]} 1. Nf3 {[%emt 0:00:02]} d5 {[%emt 0:00:01]} 2. b3 {[%emt 0:00:02]} Nf6 {[%emt 0:00:16]} 3. Bb2 {[%emt 0:00:02]} e6 {[%emt 0:00:13]} 4. e3 {[%emt 0:00:02]} Be7 {[%emt 0:00:02]} 5. g4 {[%emt 0:00:08]} O-O {[%emt 0:01:09]} 6. g5 {[%emt 0:00:02]} Ne4 {[%emt 0:00:11]} 7. h4 {[%emt 0:00:01]} c5 {[%emt 0:00:01]} 8. Nc3 {[%emt 0:00:03] The position is equal.} Nxc3 {[%emt 0:00:44]} 9. dxc3 {[%emt 0:00:02]} Nc6 {[%emt 0:00:06]} 10. c4 {[%emt 0:00:12]} Qa5+ {[%emt 0:00:30]} (10... d4 $15) 11. Qd2 {[%emt 0:01:03]} Qxd2+ {[%emt 0:00:05]} 12. Nxd2 {[%emt 0:00:02]} d4 {[%emt 0:00:17]} 13. exd4 {[%emt 0:00:39]} cxd4 {[%emt 0:00:01]} 14. O-O-O {[%emt 0:00:10]} e5 {[%emt 0:00:01]} 15. Bg2 {[%emt 0:00:04]} f6 {[%emt 0:00:36]} 16. gxf6 {[%emt 0:00:17]} Rxf6 {[%emt 0:00:19]} 17. Bd5+ {[%emt 0:00:28]} Kh8 {[%emt 0:00:02]} 18. Rde1 {[%emt 0:00:42] Threatens to win with Bxc6.} (18. Ne4 Rf4 $11) 18... Bd7 {[%emt 0:00:52]} 19. Ne4 {[%emt 0:01:02]} Rf4 {[%emt 0:00:01]} 20. Kb1 {[%emt 0:01:16]} Raf8 {[%emt 0:00:10]} (20... Bxh4 21. Bc1 Bxf2 22. Bxf4 (22. Re2 Be3 $11) 22... Bxe1 23. Ng5 $16) (20... Rxh4 21. Rxh4 Bxh4 22. Nc5 $11) 21. h5 {[%emt 0:00:11]} h6 {[%emt 0:00:00]} 22. Bc1 {[%emt 0:00:11]} R4f5 {[%emt 0:00:23]} 23. a3 {[%emt 0:00:21]} Be8 {[%emt 0:00:08]} 24. b4 {[%emt 0:00:11][%cal Bb3b4,Bb4b5][%mdl 32]} Rxh5 {[%emt 0:00:19]} 25. Rxh5 {[%emt 0:00:10]} Bxh5 {[%emt 0:00:00]} 26. b5 {[%emt 0:00:01]} Nd8 {[%emt 0:00:01]} 27. c5 {[%emt 0:00:55]} ({Better is} 27. Ng3 $11 Bg6 (27... Bf7 28. Rxe5 Bxd5 29. Rxd5 $11) 28. Rxe5) 27... Bf7 $15 {[%emt 0:00:09]} 28. Bxf7 {[%emt 0:00:18]} Nxf7 {[%emt 0:00:08]} 29. Bd2 {[%emt 0:00:14]} Rc8 {[%emt 0:00:24]} 30. Bb4 {[%emt 0:00:01]} Kg8 {[%emt 0:00:09]} (30... Kh7 $17) 31. Kb2 {[%emt 0:00:03]} a5 {[%emt 0:00:46]} 32. bxa6 {[%emt 0:00:56]} bxa6 {[%emt 0:00:01]} 33. Kb3 {[%emt 0:00:01]} Nd8 {[%emt 0:00:46]} 34. Kc4 {[%emt 0:00:02]} Nc6 {[%emt 0:01:01]} (34... Ne6 $11 {remains equal.}) 35. Kd5 $16 {[%emt 0:00:04][%mdl 1024] White has strong compensation.} Kf7 {[%emt 0:00:07]} 36. Bd2 {[%emt 0:00:27]} (36. Nd6+ Bxd6 37. cxd6 Nxb4+ 38. axb4 Rxc2) 36... Ke8 {[%emt 0:00:11]} 37. Rg1 {[%emt 0:00:01] White is more active.} (37. f4 $142) 37... Bf8 {[%emt 0:00:01]} 38. Nd6+ {[%emt 0:00:07]} Bxd6 {[%emt 0:00:01]} 39. cxd6 {[%emt 0:00:02][%mdl 4096] Endgame. KRB-KRN} g5 {[%emt 0:00:21][%mdl 8192] [#] This costs Black the game.} (39... Kf7 $1 $14) 40. Rh1 $18 {[%emt 0:00:09]} Nd8 $2 {[%emt 0:00:24]} (40... Kf7 41. Rxh6 Nb8 42. Rh7+ (42. Bxg5 Rxc2 43. Rh7+ Kg6 $18) (42. Kxe5 Nd7+ 43. Kxd4 Rxc2 $16) 42... Kf6) 41. Rxh6 {[%emt 0:00:02]} Rxc2 {[%emt 0:00:01]} 42. Rh8+ {[%emt 0:00:07]} Kd7 {[%emt 0:00:00]} 43. Rh7+ {[%emt 0:00:01]} (43. Bxg5 Nf7 44. Rh7 Rxf2 $11) 43... Kc8 {[%emt 0:00:01]} 44. Bxg5 {[%emt 0:00:06]} (44. Ba5 d3 $18) 44... d3 {[%emt 0:00:07]} 45. Rh8 {[%emt 0:00:08]} (45. Kxe5 Re2+ (45... Rxf2 46. Rh8 $16) (45... d2 46. Bxd2 Rxd2 47. Rc7+ Kb8 48. f4 $15) 46. Kf6 Rxf2+ 47. Kg6 d2 48. d7+ Kc7 $15) 45... d2 {[%emt 0:00:01]} 46. Rxd8+ {[%emt 0:00:02]} (46. Bxd8 d1=Q+ (46... d1=B $2 47. Ba5+ Kb7 48. Rh7+ Kb8 49. d7 $18) 47. Ke6 Qg4+ (47... Rxf2 48. Bh4+ Kb7 49. Rh7+ Kc6 50. Rc7+ Kb5 51. Bxf2 $11) 48. Ke7 Qd7+ (48... Rxf2 $2 49. Bb6+ Kb7 50. Bxf2 $19) 49. Kf6 Rxf2+ (49... Qxd6+ $2 50. Kg5 $19) 50. Kg6 Qf7+ (50... Qxd6+ 51. Kh5 Qxd8 52. Rxd8+ Kxd8 53. Kh4 e4 54. Kh3 e3 55. Kg3 Rf7 56. Kh4 e2 57. Kg5 e1=Q 58. Kh5 Rf2 59. Kh6 Rg2 60. Kh7 Qh4#) 51. Kh6 Rh2+ 52. Bh4+ Kb7 (52... Kd7 53. Rd8+ Ke6 54. Re8+ Qxe8 55. Kg5 Qg8+ 56. Kh5 Kf5 57. Kh6 Rxh4#) (52... Kd7 53. Rd8+ Ke6 54. Re8+ Qxe8 55. Kg5 Qg8+ 56. Kh5 Kf5 57. Kh6 Rxh4#)) 46... Kb7 {[%emt 0:00:00] [#]} 47. Bxd2 {[%emt 0:00:01] White mates.} Rxd2+ {[%emt 0:00:01]} 48. Ke6 $1 {[%emt 0:00:01]} ({Worse is} 48. Kxe5 Rxf2 49. Rg8 Kc6 $11) 48... Rxf2 {[%emt 0:00:11]} 49. d7 {[%emt 0:00:01] Weighted Error Value: White=0.11 (very precise) /Black=0.46.  Loses game:     	---       	Black=1      Mistake:       	White=2     	Black=4      Inaccurate:     	White=6     	Black=7      OK:         	White=14    	Black=10     Best:        	White=5     	Black=3} ({Not} 49. Kxe5 Ra2 $14) 1-0